[Event "Titled Tuesday Blitz June 13 Late 2023"]
[White "Nikologorsky, Matfei"]
[Black "Tanenbaum, Zachary"]
[WhiteFideId "24102474"]
[BlackFideId "2060850"]
[WhiteElo "2153"]
[BlackElo "2207"]
[Result "0-1"]
[Round "2"]
[TimeControl "180+2"]
[Date "2023.06.13"]
[WhiteClock "0:00:36"]
[BlackClock "0:01:07"]
[Board "121"]

1. e4 {[%clk 0:03:00]}  e5 {[%clk 0:03:00]} 2. Nf3 {[%clk 0:03:00]}  Nc6 {[%clk 0:03:01]} 3. Bb5 {[%clk 0:03:00]}  a6 {[%clk 0:03:01]} 4. Ba4 {[%clk 0:03:00]}  d6 {[%clk 0:03:01]} 5. O-O {[%clk 0:03:00]}  Nf6 {[%clk 0:03:02]} 6. d3 {[%clk 0:03:00]}  b5 {[%clk 0:03:01]} 7. Bb3 {[%clk 0:03:00]}  Na5 {[%clk 0:03:02]} 8. Nc3 {[%clk 0:02:59]}  Be7 {[%clk 0:03:01]} 9. h3 {[%clk 0:02:56]}  O-O {[%clk 0:03:01]} 10. Ne2 {[%clk 0:02:57]}  Nh5 {[%clk 0:02:47]} 11. c3 {[%clk 0:02:47]}  Nxb3 {[%clk 0:02:47]} 12. axb3 {[%clk 0:02:47]}  f5 {[%clk 0:02:47]} 13. exf5 {[%clk 0:02:46]}  Bxf5 {[%clk 0:02:46]} 14. Ng3 {[%clk 0:02:35]}  Nxg3 {[%clk 0:02:45]} 15. fxg3 {[%clk 0:02:35]}  Qe8 {[%clk 0:02:11]} 16. Be3 {[%clk 0:01:55]}  Qg6 {[%clk 0:02:08]} 17. Nh4 {[%clk 0:01:39]}  Bxh4 {[%clk 0:02:07]} 18. gxh4 {[%clk 0:01:40]}  Bxd3 {[%clk 0:02:00]} 19. Rxf8+ {[%clk 0:01:39]}  Rxf8 {[%clk 0:02:01]} 20. Qd2 {[%clk 0:01:35]}  Rf3 {[%clk 0:01:49]} 21. Bg5 {[%clk 0:01:28]}  Rf7 {[%clk 0:01:29]} 22. Rxa6 {[%clk 0:01:26]}  h6 {[%clk 0:01:29]} 23. Be3 {[%clk 0:01:17]}  Be4 {[%clk 0:01:12]} 24. Ra1 {[%clk 0:01:05]}  Qg3 {[%clk 0:01:10]} 25. Re1 {[%clk 0:00:53]}  Bxg2 {[%clk 0:01:08]} 26. Bf2 {[%clk 0:00:36]}  Qxh3 {[%clk 0:01:07]} 0-1


[Site "https://www.chess.com"]

[Event "Titled Tuesday Blitz June 13 Late 2023"]
[White "Bueno, Alfeu Junior Varela"]
[Black "Sai Krishna G V"]
[WhiteFideId "2108879"]
[BlackFideId "5028280"]
[WhiteElo "2175"]
[BlackElo "2359"]
[Result "0-1"]
[Round "2"]
[TimeControl "180+2"]
[Date "2023.06.13"]
[WhiteClock "0:00:00"]
[BlackClock "0:01:44"]
[Board "122"]

1. e4 {[%clk 0:02:55]}  e5 {[%clk 0:02:55]} 2. Nc3 {[%clk 0:02:54]}  Nc6 {[%clk 0:02:55]} 3. Bc4 {[%clk 0:02:54]}  Nf6 {[%clk 0:02:55]} 4. d3 {[%clk 0:02:54]}  Bb4 {[%clk 0:02:56]} 5. Bg5 {[%clk 0:02:48]}  h6 {[%clk 0:02:55]} 6. Bh4 {[%clk 0:02:43]}  g5 {[%clk 0:02:55]} 7. Bg3 {[%clk 0:02:43]}  d5 {[%clk 0:02:55]} 8. exd5 {[%clk 0:02:43]}  Nxd5 {[%clk 0:02:55]} 9. Ne2 {[%clk 0:02:44]}  f5 {[%clk 0:02:54]} 10. O-O {[%clk 0:02:37]}  Nf6 {[%clk 0:02:43]} 11. f3 {[%clk 0:02:04]}  Qe7 {[%clk 0:02:37]} 12. Kh1 {[%clk 0:01:41]}  Be6 {[%clk 0:02:33]} 13. Bb5 {[%clk 0:01:32]}  Qc5 {[%clk 0:02:27]} 14. d4 {[%clk 0:01:26]}  exd4 {[%clk 0:02:23]} 15. Nxd4 {[%clk 0:01:26]}  O-O-O {[%clk 0:02:12]} 16. Nxe6 {[%clk 0:01:17]}  Rxd1 {[%clk 0:02:13]} 17. Nxc5 {[%clk 0:01:13]}  Rxa1 {[%clk 0:02:12]} 18. Rxa1 {[%clk 0:01:08]}  Bxc5 {[%clk 0:02:12]} 19. Bxc6 {[%clk 0:01:02]}  bxc6 {[%clk 0:02:12]} 20. Be5 {[%clk 0:00:59]}  Rf8 {[%clk 0:02:12]} 21. Rd1 {[%clk 0:00:43]}  Be7 {[%clk 0:02:09]} 22. Kg1 {[%clk 0:00:33]}  Rd8 {[%clk 0:02:08]} 23. Rxd8+ {[%clk 0:00:32]}  Kxd8 {[%clk 0:02:09]} 24. Kf2 {[%clk 0:00:32]}  Kd7 {[%clk 0:02:10]} 25. Ke3 {[%clk 0:00:31]}  Ke6 {[%clk 0:02:10]} 26. Bxc7 {[%clk 0:00:26]}  Bb4 {[%clk 0:02:05]} 27. Bb8 {[%clk 0:00:19]}  Bxc3 {[%clk 0:02:05]} 28. bxc3 {[%clk 0:00:18]}  a6 {[%clk 0:02:04]} 29. Kd4 {[%clk 0:00:16]}  Nd7 {[%clk 0:02:04]} 30. Bg3 {[%clk 0:00:15]}  f4 {[%clk 0:02:04]} 31. Bf2 {[%clk 0:00:14]}  Kd6 {[%clk 0:02:05]} 32. Kc4 {[%clk 0:00:14]}  c5 {[%clk 0:01:58]} 33. a4 {[%clk 0:00:12]}  Kc6 {[%clk 0:01:58]} 34. a5 {[%clk 0:00:12]}  Ne5+ {[%clk 0:01:58]} 35. Kb3 {[%clk 0:00:12]}  Kb5 {[%clk 0:01:58]} 36. Bg1 {[%clk 0:00:08]}  Nc4 {[%clk 0:01:58]} 37. Bf2 {[%clk 0:00:07]}  Nxa5+ {[%clk 0:01:58]} 38. Ka3 {[%clk 0:00:07]}  Nc4+ {[%clk 0:01:59]} 39. Kb3 {[%clk 0:00:08]}  a5 {[%clk 0:01:58]} 40. Bg1 {[%clk 0:00:06]}  a4+ {[%clk 0:01:58]} 41. Ka2 {[%clk 0:00:06]}  Ne3 {[%clk 0:01:58]} 42. g3 {[%clk 0:00:04]}  Nxc2 {[%clk 0:01:57]} 43. gxf4 {[%clk 0:00:05]}  gxf4 {[%clk 0:01:58]} 44. h3 {[%clk 0:00:05]}  Ne1 {[%clk 0:01:58]} 45. Bh2 {[%clk 0:00:05]}  Nxf3 {[%clk 0:01:56]} 46. Bxf4 {[%clk 0:00:05]}  h5 {[%clk 0:01:56]} 47. Kb2 {[%clk 0:00:03]}  Kc4 {[%clk 0:01:54]} 48. Bd6 {[%clk 0:00:04]}  Ng1 {[%clk 0:01:52]} 49. h4 {[%clk 0:00:04]}  Nf3 {[%clk 0:01:52]} 50. Be7 {[%clk 0:00:05]}  Ne5 {[%clk 0:01:50]} 51. Ka3 {[%clk 0:00:06]}  Kb5 {[%clk 0:01:50]} 52. Bf6 {[%clk 0:00:05]}  Nc4+ {[%clk 0:01:50]} 53. Ka2 {[%clk 0:00:05]}  Nb6 {[%clk 0:01:49]} 54. Be7 {[%clk 0:00:04]}  Nd5 {[%clk 0:01:48]} 55. c4+ {[%clk 0:00:01]}  Kxc4 {[%clk 0:01:48]} 56. Bf8 {[%clk 0:00:02]}  Kb4 {[%clk 0:01:47]} 57. Bd6 {[%clk 0:00:01]}  Nc3+ {[%clk 0:01:47]} 58. Kb2 {[%clk 0:00:02]}  a3+ {[%clk 0:01:48]} 59. Kc2 {[%clk 0:00:02]}  Nb5 {[%clk 0:01:45]} 60. Be7 {[%clk 0:00:00]}  Nd4+ {[%clk 0:01:44]} 0-1


[Site "https://www.chess.com"]

[Event "Titled Tuesday Blitz June 13 Late 2023"]
[White "Ashraf, Artin"]
[Black "Pesotskiy, Mikhail"]
[WhiteFideId "22514805"]
[BlackFideId "34164453"]
[WhiteElo "2224"]
[BlackElo "2131"]
[Result "1-0"]
[Round "2"]
[TimeControl "180+2"]
[Date "2023.06.13"]
[WhiteClock "0:00:08"]
[BlackClock "0:00:48"]
[Board "123"]

1. e4 {[%clk 0:02:58]}  e6 {[%clk 0:03:00]} 2. d3 {[%clk 0:02:57]}  c5 {[%clk 0:03:00]} 3. Nd2 {[%clk 0:02:57]}  Nc6 {[%clk 0:03:01]} 4. g3 {[%clk 0:02:56]}  d6 {[%clk 0:02:57]} 5. Bg2 {[%clk 0:02:57]}  g6 {[%clk 0:02:58]} 6. Ngf3 {[%clk 0:02:57]}  Bg7 {[%clk 0:02:59]} 7. O-O {[%clk 0:02:57]}  Nge7 {[%clk 0:03:00]} 8. Re1 {[%clk 0:02:56]}  O-O {[%clk 0:03:01]} 9. c3 {[%clk 0:02:56]}  b5 {[%clk 0:02:57]} 10. Nf1 {[%clk 0:02:51]}  b4 {[%clk 0:02:57]} 11. d4 {[%clk 0:02:51]}  Qb6 {[%clk 0:02:44]} 12. Be3 {[%clk 0:02:45]}  cxd4 {[%clk 0:02:30]} 13. cxd4 {[%clk 0:02:39]}  d5 {[%clk 0:02:30]} 14. e5 {[%clk 0:02:19]}  Nf5 {[%clk 0:02:27]} 15. N1d2 {[%clk 0:01:31]}  Nxe3 {[%clk 0:01:59]} 16. fxe3 {[%clk 0:01:24]}  f6 {[%clk 0:01:59]} 17. exf6 {[%clk 0:01:18]}  Bxf6 {[%clk 0:02:00]} 18. Rc1 {[%clk 0:01:12]}  Bd7 {[%clk 0:01:56]} 19. Nb3 {[%clk 0:01:08]}  Rad8 {[%clk 0:01:56]} 20. Nc5 {[%clk 0:01:04]}  Bc8 {[%clk 0:01:57]} 21. Bh3 {[%clk 0:00:54]}  Rfe8 {[%clk 0:01:52]} 22. Rf1 {[%clk 0:00:53]}  Ne7 {[%clk 0:01:43]} 23. Qe2 {[%clk 0:00:32]}  Nf5 {[%clk 0:01:26]} 24. g4 {[%clk 0:00:22]}  Ne7 {[%clk 0:01:26]} 25. g5 {[%clk 0:00:22]}  Bg7 {[%clk 0:01:26]} 26. Kh1 {[%clk 0:00:07]}  Nf5 {[%clk 0:01:26]} 27. Qd2 {[%clk 0:00:06]}  e5 {[%clk 0:01:06]} 28. Nxe5 {[%clk 0:00:03]}  Bxe5 {[%clk 0:01:07]} 29. dxe5 {[%clk 0:00:04]}  Rxe5 {[%clk 0:01:08]} 30. Rfe1 {[%clk 0:00:02]}  Rde8 {[%clk 0:01:00]} 31. Nd3 {[%clk 0:00:02]}  Rxe3 {[%clk 0:00:58]} 32. Rxe3 {[%clk 0:00:01]}  Qxe3 {[%clk 0:00:59]} 33. Qxe3 {[%clk 0:00:02]}  Rxe3 {[%clk 0:00:59]} 34. Rxc8+ {[%clk 0:00:02]}  Kg7 {[%clk 0:00:59]} 35. Bxf5 {[%clk 0:00:03]}  gxf5 {[%clk 0:00:59]} 36. Nf4 {[%clk 0:00:03]}  d4 {[%clk 0:00:51]} 37. Rc7+ {[%clk 0:00:03]}  Kg8 {[%clk 0:00:48]} 38. Rd7 {[%clk 0:00:04]}  Re4 {[%clk 0:00:48]} 39. Nh5 {[%clk 0:00:04]}  Re1+ {[%clk 0:00:46]} 40. Kg2 {[%clk 0:00:05]}  Re2+ {[%clk 0:00:47]} 41. Kf3 {[%clk 0:00:05]}  Rxb2 {[%clk 0:00:48]} 42. Nf6+ {[%clk 0:00:06]}  Kf8 {[%clk 0:00:49]} 43. Nxh7+ {[%clk 0:00:06]}  Ke8 {[%clk 0:00:48]} 44. Nf6+ {[%clk 0:00:07]}  Kf8 {[%clk 0:00:49]} 45. g6 {[%clk 0:00:08]}  Rxa2 {[%clk 0:00:48]} 46. g7# {[%clk 0:00:08]} 1-0


[Site "https://www.chess.com"]

[Event "Titled Tuesday Blitz June 13 Late 2023"]
[White "Kucuksari, Kaan"]
[Black "Ozalp, Burak"]
[WhiteFideId "6380166"]
[BlackFideId "6314210"]
[WhiteElo "2364"]
[BlackElo "2106"]
[Result "1-0"]
[Round "2"]
[TimeControl "180+2"]
[Date "2023.06.13"]
[WhiteClock "0:00:06"]
[BlackClock "0:00:00"]
[Board "124"]

1. e4 {[%clk 0:02:57]}  c6 {[%clk 0:03:00]} 2. d4 {[%clk 0:02:56]}  d5 {[%clk 0:03:00]} 3. e5 {[%clk 0:02:56]}  Bf5 {[%clk 0:02:56]} 4. Bd3 {[%clk 0:02:55]}  Bxd3 {[%clk 0:02:53]} 5. Qxd3 {[%clk 0:02:55]}  e6 {[%clk 0:02:52]} 6. Nf3 {[%clk 0:02:55]}  Nd7 {[%clk 0:02:50]} 7. O-O {[%clk 0:02:55]}  Ne7 {[%clk 0:02:50]} 8. h4 {[%clk 0:02:46]}  c5 {[%clk 0:02:49]} 9. c3 {[%clk 0:02:43]}  Nc6 {[%clk 0:02:49]} 10. Bg5 {[%clk 0:02:42]}  Be7 {[%clk 0:02:49]} 11. Nbd2 {[%clk 0:02:38]}  h6 {[%clk 0:02:49]} 12. Bxe7 {[%clk 0:02:37]}  Qxe7 {[%clk 0:02:49]} 13. Qe3 {[%clk 0:02:33]}  O-O-O {[%clk 0:02:45]} 14. a4 {[%clk 0:02:31]}  g5 {[%clk 0:02:41]} 15. h5 {[%clk 0:02:24]}  g4 {[%clk 0:02:35]} 16. Ne1 {[%clk 0:02:24]}  Qh4 {[%clk 0:02:28]} 17. Nd3 {[%clk 0:02:09]}  Rdg8 {[%clk 0:02:17]} 18. g3 {[%clk 0:02:03]}  Qxh5 {[%clk 0:02:13]} 19. b4 {[%clk 0:02:00]}  c4 {[%clk 0:02:07]} 20. Nf4 {[%clk 0:01:58]}  Qg5 {[%clk 0:02:05]} 21. a5 {[%clk 0:01:51]}  h5 {[%clk 0:01:57]} 22. Ng2 {[%clk 0:01:47]}  Ne7 {[%clk 0:01:41]} 23. Nh4 {[%clk 0:01:29]}  Nf5 {[%clk 0:01:32]} 24. Qxg5 {[%clk 0:01:29]}  Rxg5 {[%clk 0:01:32]} 25. Kg2 {[%clk 0:01:29]}  Nf8 {[%clk 0:01:08]} 26. Rh1 {[%clk 0:01:17]}  Ng6 {[%clk 0:01:05]} 27. Nf1 {[%clk 0:00:58]}  Ngxh4+ {[%clk 0:00:50]} 28. gxh4 {[%clk 0:00:58]}  Rgg8 {[%clk 0:00:50]} 29. Ng3 {[%clk 0:00:57]}  Nxg3 {[%clk 0:00:43]} 30. fxg3 {[%clk 0:00:58]}  Kd7 {[%clk 0:00:43]} 31. Rhf1 {[%clk 0:00:58]}  Ke7 {[%clk 0:00:43]} 32. a6 {[%clk 0:00:54]}  b6 {[%clk 0:00:42]} 33. Rf4 {[%clk 0:00:51]}  f5 {[%clk 0:00:38]} 34. exf6+ {[%clk 0:00:51]}  Kf7 {[%clk 0:00:38]} 35. Re1 {[%clk 0:00:46]}  Rg6 {[%clk 0:00:33]} 36. Re5 {[%clk 0:00:43]}  Rxf6 {[%clk 0:00:31]} 37. Rxf6+ {[%clk 0:00:42]}  Kxf6 {[%clk 0:00:31]} 38. Kf2 {[%clk 0:00:39]}  Rh6 {[%clk 0:00:31]} 39. Ke3 {[%clk 0:00:34]}  Kf7 {[%clk 0:00:30]} 40. Ke2 {[%clk 0:00:11]}  b5 {[%clk 0:00:30]} 41. Rg5 {[%clk 0:00:08]}  e5 {[%clk 0:00:20]} 42. dxe5 {[%clk 0:00:05]}  Rxa6 {[%clk 0:00:19]} 43. Rxh5 {[%clk 0:00:04]}  Ra3 {[%clk 0:00:19]} 44. Kd2 {[%clk 0:00:04]}  Ra2+ {[%clk 0:00:19]} 45. Ke3 {[%clk 0:00:05]}  Rg2 {[%clk 0:00:19]} 46. Kd4 {[%clk 0:00:04]}  Rxg3 {[%clk 0:00:19]} 47. Rh7+ {[%clk 0:00:04]}  Ke6 {[%clk 0:00:18]} 48. Rh6+ {[%clk 0:00:04]}  Ke7 {[%clk 0:00:17]} 49. Kxd5 {[%clk 0:00:03]}  Rd3+ {[%clk 0:00:16]} 50. Ke4 {[%clk 0:00:03]}  Rxc3 {[%clk 0:00:17]} 51. Rh7+ {[%clk 0:00:03]}  Ke6 {[%clk 0:00:17]} 52. Rh6+ {[%clk 0:00:04]}  Ke7 {[%clk 0:00:18]} 53. Rg6 {[%clk 0:00:03]}  g3 {[%clk 0:00:18]} 54. h5 {[%clk 0:00:03]}  Rc1 {[%clk 0:00:18]} 55. h6 {[%clk 0:00:04]}  c3 {[%clk 0:00:18]} 56. h7 {[%clk 0:00:04]}  Rh1 {[%clk 0:00:19]} 57. Rxg3 {[%clk 0:00:04]}  Rxh7 {[%clk 0:00:18]} 58. Rxc3 {[%clk 0:00:04]}  Rh4+ {[%clk 0:00:18]} 59. Kd5 {[%clk 0:00:05]}  Rxb4 {[%clk 0:00:18]} 60. Rc7+ {[%clk 0:00:05]}  Ke8 {[%clk 0:00:17]} 61. Rxa7 {[%clk 0:00:06]}  Rh4 {[%clk 0:00:14]} 62. Kd6 {[%clk 0:00:07]}  Rh1 {[%clk 0:00:13]} 63. Ra8+ {[%clk 0:00:04]}  Kf7 {[%clk 0:00:13]} 64. e6+ {[%clk 0:00:05]}  Kf6 {[%clk 0:00:12]} 65. Rf8+ {[%clk 0:00:05]}  Kg7 {[%clk 0:00:12]} 66. e7 {[%clk 0:00:06]}  Rd1+ {[%clk 0:00:12]} 67. Kc5 {[%clk 0:00:06]}  Rc1+ {[%clk 0:00:00]} 68. Kb6 {[%clk 0:00:06]} 1-0


[Site "https://www.chess.com"]

[Event "Titled Tuesday Blitz June 13 Late 2023"]
[White "Chen, Ryo"]
[Black "Zenin, Dmitry"]
[WhiteFideId "7003072"]
[BlackFideId "4127897"]
[WhiteElo "2169"]
[BlackElo "2215"]
[Result "0-1"]
[Round "2"]
[TimeControl "180+2"]
[Date "2023.06.13"]
[WhiteClock "0:00:11"]
[BlackClock "0:00:22"]
[Board "125"]

1. e4 {[%clk 0:03:00]}  e5 {[%clk 0:02:59]} 2. Nf3 {[%clk 0:02:59]}  Nc6 {[%clk 0:02:59]} 3. Bb5 {[%clk 0:02:58]}  a6 {[%clk 0:02:59]} 4. Ba4 {[%clk 0:02:58]}  Nf6 {[%clk 0:02:59]} 5. O-O {[%clk 0:02:55]}  Be7 {[%clk 0:02:59]} 6. d3 {[%clk 0:02:54]}  b5 {[%clk 0:02:58]} 7. Bb3 {[%clk 0:02:54]}  d6 {[%clk 0:02:58]} 8. a3 {[%clk 0:02:49]}  O-O {[%clk 0:02:57]} 9. Nc3 {[%clk 0:02:50]}  Be6 {[%clk 0:02:57]} 10. Nd5 {[%clk 0:02:49]}  Bxd5 {[%clk 0:02:57]} 11. exd5 {[%clk 0:02:48]}  Nd4 {[%clk 0:02:57]} 12. Nxd4 {[%clk 0:02:48]}  exd4 {[%clk 0:02:57]} 13. Qf3 {[%clk 0:02:46]}  Nd7 {[%clk 0:02:57]} 14. Bd2 {[%clk 0:02:40]}  a5 {[%clk 0:02:47]} 15. a4 {[%clk 0:02:38]}  b4 {[%clk 0:02:45]} 16. Bc4 {[%clk 0:02:36]}  Bg5 {[%clk 0:02:26]} 17. Bxg5 {[%clk 0:02:24]}  Qxg5 {[%clk 0:02:25]} 18. Bb5 {[%clk 0:02:24]}  Nc5 {[%clk 0:02:20]} 19. b3 {[%clk 0:02:16]}  Rad8 {[%clk 0:01:56]} 20. Rae1 {[%clk 0:02:13]}  g6 {[%clk 0:01:50]} 21. g3 {[%clk 0:02:11]}  Kg7 {[%clk 0:01:48]} 22. h4 {[%clk 0:02:08]}  Qf6 {[%clk 0:01:47]} 23. Qg4 {[%clk 0:02:07]}  h5 {[%clk 0:01:47]} 24. Qg5 {[%clk 0:02:02]}  Nd7 {[%clk 0:01:28]} 25. Re7 {[%clk 0:01:55]}  Nb6 {[%clk 0:01:26]} 26. Rxc7 {[%clk 0:01:46]}  Qxg5 {[%clk 0:01:25]} 27. hxg5 {[%clk 0:01:45]}  Nxd5 {[%clk 0:01:25]} 28. Rc4 {[%clk 0:01:42]}  Nc3 {[%clk 0:01:16]} 29. Kg2 {[%clk 0:01:36]}  Rb8 {[%clk 0:01:08]} 30. Re1 {[%clk 0:01:31]}  Nxb5 {[%clk 0:01:06]} 31. axb5 {[%clk 0:01:27]}  Rxb5 {[%clk 0:01:06]} 32. Rxd4 {[%clk 0:01:27]}  Rxg5 {[%clk 0:01:05]} 33. Rxd6 {[%clk 0:01:27]}  Rc5 {[%clk 0:01:05]} 34. Re2 {[%clk 0:01:24]}  Rfc8 {[%clk 0:01:05]} 35. Rd7 {[%clk 0:01:02]}  Rxc2 {[%clk 0:01:04]} 36. Ree7 {[%clk 0:01:02]}  Rf8 {[%clk 0:01:04]} 37. d4 {[%clk 0:00:55]}  Rc3 {[%clk 0:01:03]} 38. d5 {[%clk 0:00:55]}  Rxb3 {[%clk 0:01:03]} 39. d6 {[%clk 0:00:56]}  Rd3 {[%clk 0:01:03]} 40. Re5 {[%clk 0:00:50]}  a4 {[%clk 0:00:56]} 41. Re4 {[%clk 0:00:49]}  Rb3 {[%clk 0:00:26]} 42. Rb7 {[%clk 0:00:43]}  a3 {[%clk 0:00:24]} 43. Rbxb4 {[%clk 0:00:36]}  Rxb4 {[%clk 0:00:23]} 44. Rxb4 {[%clk 0:00:35]}  Ra8 {[%clk 0:00:24]} 45. Rb1 {[%clk 0:00:17]}  a2 {[%clk 0:00:24]} 46. Ra1 {[%clk 0:00:18]}  Kf6 {[%clk 0:00:24]} 47. Kf3 {[%clk 0:00:18]}  Ke6 {[%clk 0:00:24]} 48. Kf4 {[%clk 0:00:18]}  f6 {[%clk 0:00:24]} 49. Ke4 {[%clk 0:00:18]}  Kxd6 {[%clk 0:00:24]} 50. f4 {[%clk 0:00:18]}  Ra3 {[%clk 0:00:23]} 51. f5 {[%clk 0:00:11]}  g5 {[%clk 0:00:22]} 0-1


[Site "https://www.chess.com"]

[Event "Titled Tuesday Blitz June 13 Late 2023"]
[White "Lacey, Patrick"]
[Black "Feng, Eric"]
[WhiteFideId "2032007"]
[BlackFideId "30952590"]
[WhiteElo "2384"]
[BlackElo "1785"]
[Result "0-1"]
[Round "2"]
[TimeControl "180+2"]
[Date "2023.06.13"]
[WhiteClock "0:00:04"]
[BlackClock "0:00:20"]
[Board "131"]

1. Nf3 {[%clk 0:03:00]}  Nf6 {[%clk 0:02:16]} 2. c4 {[%clk 0:02:58]}  g6 {[%clk 0:02:16]} 3. Nc3 {[%clk 0:02:57]}  Bg7 {[%clk 0:02:17]} 4. g3 {[%clk 0:02:57]}  O-O {[%clk 0:02:17]} 5. Bg2 {[%clk 0:02:54]}  d6 {[%clk 0:02:18]} 6. O-O {[%clk 0:02:54]}  e5 {[%clk 0:02:18]} 7. d3 {[%clk 0:02:53]}  Nbd7 {[%clk 0:02:18]} 8. Rb1 {[%clk 0:02:53]}  a5 {[%clk 0:02:18]} 9. a3 {[%clk 0:02:53]}  c6 {[%clk 0:02:18]} 10. b4 {[%clk 0:02:53]}  axb4 {[%clk 0:02:19]} 11. axb4 {[%clk 0:02:52]}  d5 {[%clk 0:02:20]} 12. Bg5 {[%clk 0:02:50]}  d4 {[%clk 0:02:19]} 13. Ne4 {[%clk 0:02:49]}  Qe7 {[%clk 0:02:16]} 14. b5 {[%clk 0:02:47]}  c5 {[%clk 0:02:13]} 15. Qc1 {[%clk 0:02:46]}  Qe6 {[%clk 0:01:57]} 16. Ne1 {[%clk 0:02:30]}  Nxe4 {[%clk 0:01:56]} 17. Bxe4 {[%clk 0:02:29]}  Kh8 {[%clk 0:01:55]} 18. Bd5 {[%clk 0:02:27]}  Qd6 {[%clk 0:01:54]} 19. Ra1 {[%clk 0:02:15]}  Rxa1 {[%clk 0:01:53]} 20. Qxa1 {[%clk 0:02:16]}  f6 {[%clk 0:01:53]} 21. Bd2 {[%clk 0:02:15]}  Nb6 {[%clk 0:01:50]} 22. Bg2 {[%clk 0:02:09]}  f5 {[%clk 0:01:43]} 23. Qa7 {[%clk 0:02:06]}  h6 {[%clk 0:01:17]} 24. Nf3 {[%clk 0:01:51]}  g5 {[%clk 0:01:13]} 25. Ba5 {[%clk 0:01:39]}  Nd7 {[%clk 0:01:13]} 26. Rb1 {[%clk 0:01:33]}  e4 {[%clk 0:01:11]} 27. Ne1 {[%clk 0:01:30]}  Ne5 {[%clk 0:01:11]} 28. Bb6 {[%clk 0:01:26]}  Nd7 {[%clk 0:01:07]} 29. Ba5 {[%clk 0:01:25]}  e3 {[%clk 0:01:04]} 30. fxe3 {[%clk 0:01:20]}  dxe3 {[%clk 0:01:04]} 31. Nc2 {[%clk 0:01:20]}  f4 {[%clk 0:01:02]} 32. Be1 {[%clk 0:01:16]}  Ne5 {[%clk 0:01:00]} 33. Qa3 {[%clk 0:00:52]}  Bg4 {[%clk 0:00:50]} 34. d4 {[%clk 0:00:32]}  f3 {[%clk 0:00:20]} 35. dxe5 {[%clk 0:00:28]}  fxg2 {[%clk 0:00:20]} 36. exd6 {[%clk 0:00:20]}  Bh3 {[%clk 0:00:20]} 37. Nxe3 {[%clk 0:00:04]}  Rf1+ {[%clk 0:00:20]} 0-1


[Site "https://www.chess.com"]

[Event "Titled Tuesday Blitz June 13 Late 2023"]
[White "Han, Yichen"]
[Black "Rodriguez, Santiago"]
[WhiteFideId "1054430"]
[BlackFideId "3000591"]
[WhiteElo "2342"]
[BlackElo "2249"]
[Result "0-1"]
[Round "2"]
[TimeControl "180+2"]
[Date "2023.06.13"]
[WhiteClock "0:00:06"]
[BlackClock "0:00:14"]
[Board "133"]

1. d4 {[%clk 0:03:00]}  Nf6 {[%clk 0:02:59]} 2. c4 {[%clk 0:02:57]}  e6 {[%clk 0:03:00]} 3. Nf3 {[%clk 0:02:58]}  b6 {[%clk 0:02:59]} 4. a3 {[%clk 0:02:57]}  Ba6 {[%clk 0:02:55]} 5. Nc3 {[%clk 0:02:58]}  Bxc4 {[%clk 0:02:55]} 6. Bg5 {[%clk 0:02:57]}  h6 {[%clk 0:02:53]} 7. Bh4 {[%clk 0:02:57]}  Be7 {[%clk 0:02:52]} 8. Ne5 {[%clk 0:02:43]}  Ba6 {[%clk 0:02:50]} 9. b4 {[%clk 0:02:34]}  d6 {[%clk 0:02:45]} 10. Nf3 {[%clk 0:02:26]}  O-O {[%clk 0:02:42]} 11. b5 {[%clk 0:02:25]}  Bb7 {[%clk 0:02:43]} 12. e3 {[%clk 0:02:26]}  a6 {[%clk 0:02:42]} 13. Qb3 {[%clk 0:02:17]}  Ne4 {[%clk 0:02:40]} 14. Bxe7 {[%clk 0:02:15]}  Qxe7 {[%clk 0:02:41]} 15. Nxe4 {[%clk 0:02:11]}  Bxe4 {[%clk 0:02:40]} 16. Be2 {[%clk 0:02:12]}  axb5 {[%clk 0:02:38]} 17. Qxb5 {[%clk 0:02:11]}  Ra5 {[%clk 0:02:37]} 18. Qb2 {[%clk 0:02:06]}  Nd7 {[%clk 0:02:37]} 19. O-O {[%clk 0:02:06]}  Rfa8 {[%clk 0:02:36]} 20. Nd2 {[%clk 0:02:03]}  Bb7 {[%clk 0:02:35]} 21. Nc4 {[%clk 0:02:03]}  Ra4 {[%clk 0:02:32]} 22. Rfc1 {[%clk 0:01:44]}  Nf6 {[%clk 0:02:32]} 23. Bd1 {[%clk 0:01:40]}  R4a7 {[%clk 0:02:28]} 24. a4 {[%clk 0:01:38]}  Bd5 {[%clk 0:02:15]} 25. Na3 {[%clk 0:01:35]}  c5 {[%clk 0:01:56]} 26. dxc5 {[%clk 0:01:10]}  bxc5 {[%clk 0:01:03]} 27. Nb5 {[%clk 0:00:58]}  Ra5 {[%clk 0:01:01]} 28. f3 {[%clk 0:00:46]}  Bc6 {[%clk 0:01:01]} 29. Nc3 {[%clk 0:00:25]}  Nd5 {[%clk 0:00:46]} 30. Nxd5 {[%clk 0:00:23]}  exd5 {[%clk 0:00:46]} 31. Kf2 {[%clk 0:00:21]}  Bxa4 {[%clk 0:00:44]} 32. Bxa4 {[%clk 0:00:15]}  Rxa4 {[%clk 0:00:41]} 33. Rxa4 {[%clk 0:00:16]}  Rxa4 {[%clk 0:00:41]} 34. Qb8+ {[%clk 0:00:16]}  Kh7 {[%clk 0:00:40]} 35. Qb3 {[%clk 0:00:17]}  d4 {[%clk 0:00:22]} 36. exd4 {[%clk 0:00:09]}  Rxd4 {[%clk 0:00:20]} 37. Qc2+ {[%clk 0:00:07]}  g6 {[%clk 0:00:18]} 38. Re1 {[%clk 0:00:08]}  Qg5 {[%clk 0:00:17]} 39. Kg1 {[%clk 0:00:08]}  Qd5 {[%clk 0:00:14]} 40. Re2 {[%clk 0:00:06]}  Rd1+ {[%clk 0:00:14]} 41. Kf2 {[%clk 0:00:07]}  Qd4+ {[%clk 0:00:14]} 42. Re3 {[%clk 0:00:06]}  Rd2+ {[%clk 0:00:14]} 0-1


[Site "https://www.chess.com"]